[Event "*** Titled Tuesday Blitz"]
[Site "Chess.com"]
[Date "2020.05.19"]
[Round "10"]
[White "White_Ghost"]
[Black "GoldenShare"]
[Result "0-1"]
[WhiteElo "2459"]
[BlackElo "2616"]
[TimeControl "180+1"]
[EndTime "13:57:38 PDT"]
[Termination "GoldenShare won on time"]

1. d4 {[%clk 0:03:00.9]} 1... d5 {[%clk 0:03:00.1]} 2. c4 {[%clk 0:03:00.5]}
2... dxc4 {[%clk 0:03:01]} 3. e4 {[%clk 0:02:56.7]} 3... b5 {[%clk 0:03:00.6]}
4. a4 {[%clk 0:02:55.5]} 4... c6 {[%clk 0:03:01]} 5. axb5 {[%clk 0:02:27.6]}
5... cxb5 {[%clk 0:03:01.9]} 6. Nc3 {[%clk 0:02:24.9]} 6... a6 {[%clk
0:03:02.2]} 7. Nxb5 {[%clk 0:02:21.3]} 7... axb5 {[%clk 0:03:03.1]} 8. Rxa8
{[%clk 0:02:18]} 8... Bb7 {[%clk 0:03:04]} 9. Ra1 {[%clk 0:02:15]} 9... e6
{[%clk 0:03:04.2]} 10. Ne2 {[%clk 0:02:11.6]} 10... Bxe4 {[%clk 0:03:00.8]} 11.
Nc3 {[%clk 0:02:08.6]} 11... Bb4 {[%clk 0:02:42.9]} 12. Be2 {[%clk 0:02:03.5]}
12... Bxg2 {[%clk 0:02:40.7]} 13. Rg1 {[%clk 0:01:57.6]} 13... Be4 {[%clk
0:02:40.8]} 14. Bf3 {[%clk 0:01:57.9]} 14... Bd3 {[%clk 0:02:23.9]} 15. Ra8
{[%clk 0:01:45.2]} 15... Ne7 {[%clk 0:01:44.8]} 16. Bf4 {[%clk 0:01:40.5]} 16...
Bd6 {[%clk 0:01:44.9]} 17. Bxd6 {[%clk 0:01:12.9]} 17... Qxd6 {[%clk 0:01:45.8]}
18. Qd2 {[%clk 0:00:53.8]} 18... O-O {[%clk 0:01:35]} 19. Nxb5 {[%clk
0:00:48.8]} 19... Qd7 {[%clk 0:01:20.1]} 20. Nc3 {[%clk 0:00:37.6]} 20... Qxd4
{[%clk 0:01:17.3]} 21. Qg5 {[%clk 0:00:27.5]} 21... Nf5 {[%clk 0:01:04.6]} 22.
Qg4 {[%clk 0:00:10]} 22... Qe5+ {[%clk 0:01:02.1]} 23. Kd1 {[%clk 0:00:10.5]}
23... Nd4 {[%clk 0:00:53.9]} 24. Be4 {[%clk 0:00:08.4]} 24... f5 {[%clk
0:00:39.4]} 25. f4 {[%clk 0:00:07.7]} 25... Qf6 {[%clk 0:00:23.6]} 26. Qg2
{[%clk 0:00:04.2]} 26... fxe4 {[%clk 0:00:21.3]} 27. Nxe4 {[%clk 0:00:05.1]}
27... Bxe4 {[%clk 0:00:18.3]} 28. Qxe4 {[%clk 0:00:06]} 28... Nbc6 {[%clk
0:00:16.8]} 29. Rxf8+ {[%clk 0:00:05.3]} 29... Kxf8 {[%clk 0:00:17.7]} 30. Re1
{[%clk 0:00:03.9]} 30... Qf5 {[%clk 0:00:16.3]} 31. Qxf5+ {[%clk 0:00:02.5]}
31... exf5 {[%clk 0:00:15.4]} 32. Rf1 {[%clk 0:00:02.8]} 32... Ke7 {[%clk
0:00:15.4]} 33. Kd2 {[%clk 0:00:03.4]} 33... Kd6 {[%clk 0:00:15.8]} 34. Kc3
{[%clk 0:00:04]} 34... Kc5 {[%clk 0:00:14.7]} 35. Ra1 {[%clk 0:00:04.9]} 35...
Ne2+ {[%clk 0:00:13.7]} 36. Kd2 {[%clk 0:00:04.7]} 36... Nxf4 {[%clk 0:00:14.6]}
37. Ra8 {[%clk 0:00:03.9]} 37... Nd5 {[%clk 0:00:13.1]} 38. Rg8 {[%clk
0:00:03.8]} 38... g6 {[%clk 0:00:12.3]} 39. Rg7 {[%clk 0:00:03.6]} 39... Ne5
{[%clk 0:00:12.4]} 40. Rxh7 {[%clk 0:00:03.4]} 40... f4 {[%clk 0:00:12.9]} 41.
Rg7 {[%clk 0:00:01.8]} 41... Kd4 {[%clk 0:00:12.5]} 42. Rg8 {[%clk 0:00:01.9]}
42... f3 {[%clk 0:00:11.9]} 43. Rf8 {[%clk 0:00:02]} 43... Ke4 {[%clk
0:00:12.1]} 44. Ke1 {[%clk 0:00:01.9]} 44... Nf4 {[%clk 0:00:12.3]} 45. h4
{[%clk 0:00:02.1]} 45... Ned3+ {[%clk 0:00:10.2]} 46. Kf1 {[%clk 0:00:02.6]}
46... Nxb2 {[%clk 0:00:11.1]} 47. Re8+ {[%clk 0:00:02.3]} 47... Kf5 {[%clk
0:00:10.6]} 48. Kf2 {[%clk 0:00:03.2]} 48... Kg4 {[%clk 0:00:09.1]} 49. Re4
{[%clk 0:00:03.4]} 49... Nd3+ {[%clk 0:00:10]} 50. Kf1 {[%clk 0:00:03.7]} 50...
Kg3 {[%clk 0:00:08.6]} 51. Rxc4 {[%clk 0:00:03.9]} 51... Ng2 {[%clk 0:00:07.6]}
52. Re4 {[%clk 0:00:01.8]} 52... Ndf4 {[%clk 0:00:06.8]} 53. Re7 {[%clk
0:00:01.3]} 53... Nxh4 {[%clk 0:00:07]} 0-1

[Event "*** Titled Tuesday Blitz"]
[Site "Chess.com"]
[Date "2020.05.19"]
[Round "10"]
[White "olksuna"]
[Black "SchmakAttack"]
[Result "1-0"]
[WhiteElo "2598"]
[BlackElo "2457"]
[TimeControl "180+1"]
[EndTime "13:57:39 PDT"]
[Termination "olksuna won by resignation"]

1. d4 {[%clk 0:03:00.9]} 1... Nf6 {[%clk 0:02:59.6]} 2. c4 {[%clk 0:02:59.6]}
2... e6 {[%clk 0:03:00]} 3. Nf3 {[%clk 0:02:58.2]} 3... d5 {[%clk 0:02:59.8]} 4.
Bg5 {[%clk 0:02:55.4]} 4... Nbd7 {[%clk 0:02:47.6]} 5. Qc2 {[%clk 0:02:52.6]}
5... Be7 {[%clk 0:02:43.1]} 6. Nbd2 {[%clk 0:02:51.8]} 6... O-O {[%clk
0:02:41.4]} 7. e3 {[%clk 0:02:52.1]} 7... h6 {[%clk 0:02:40.8]} 8. Bh4 {[%clk
0:02:50.4]} 8... c5 {[%clk 0:02:40.7]} 9. dxc5 {[%clk 0:02:46.7]} 9... Nxc5
{[%clk 0:02:22.1]} 10. Be2 {[%clk 0:02:45.8]} 10... b6 {[%clk 0:02:06.3]} 11.
O-O {[%clk 0:02:46]} 11... Bb7 {[%clk 0:02:05.8]} 12. Rac1 {[%clk 0:02:45.6]}
12... Nfe4 {[%clk 0:01:51.8]} 13. Bxe7 {[%clk 0:02:40.8]} 13... Qxe7 {[%clk
0:01:52.7]} 14. b4 {[%clk 0:02:33.5]} 14... Nxd2 {[%clk 0:01:46.9]} 15. Nxd2
{[%clk 0:02:34.4]} 15... Nd7 {[%clk 0:01:46.5]} 16. Qb2 {[%clk 0:02:30.8]} 16...
Rfc8 {[%clk 0:01:20.9]} 17. cxd5 {[%clk 0:02:22.4]} 17... Bxd5 {[%clk
0:01:20.1]} 18. e4 {[%clk 0:02:23.1]} 18... Bb7 {[%clk 0:01:19.1]} 19. a3 {[%clk
0:02:16.4]} 19... Qf6 {[%clk 0:00:55.3]} 20. Qxf6 {[%clk 0:02:12.7]} 20... Nxf6
{[%clk 0:00:55]} 21. f3 {[%clk 0:02:13.4]} 21... g5 {[%clk 0:00:47.8]} 22. Kf2
{[%clk 0:02:08.5]} 22... Kf8 {[%clk 0:00:47.7]} 23. Ke3 {[%clk 0:02:06.6]} 23...
Ke7 {[%clk 0:00:47.8]} 24. Nc4 {[%clk 0:01:51.9]} 24... Nd7 {[%clk 0:00:35.6]}
25. Rfd1 {[%clk 0:01:44.1]} 25... Rc7 {[%clk 0:00:31.1]} 26. Nxb6 {[%clk
0:01:21.2]} 26... Rxc1 {[%clk 0:00:30.8]} 27. Rxd7+ {[%clk 0:01:21.1]} 27... Ke8
{[%clk 0:00:30.8]} 28. Bb5 {[%clk 0:01:21.7]} 28... axb6 {[%clk 0:00:25.6]} 29.
Rc7+ {[%clk 0:01:15]} 29... Kd8 {[%clk 0:00:15.4]} 30. Rxc1 {[%clk 0:01:11.4]}
30... Rxa3+ {[%clk 0:00:15.5]} 31. Kd4 {[%clk 0:01:10.9]} 31... Ra2 {[%clk
0:00:15.4]} 32. Bf1 {[%clk 0:00:58.7]} 32... Kd7 {[%clk 0:00:14.1]} 33. Ke5
{[%clk 0:00:57.4]} 33... Bc6 {[%clk 0:00:14.5]} 34. b5 {[%clk 0:00:56.1]} 34...
Bb7 {[%clk 0:00:14.8]} 35. Kf6 {[%clk 0:00:56.3]} 35... g4 {[%clk 0:00:13.1]}
36. f4 {[%clk 0:00:26.7]} 36... Bxe4 {[%clk 0:00:10.1]} 37. Kxf7 {[%clk
0:00:23.7]} 37... Bxg2 {[%clk 0:00:09.9]} 38. Bc4 {[%clk 0:00:12.3]} 38... Rf2
{[%clk 0:00:06]} 39. Bxe6+ {[%clk 0:00:11.3]} 39... Kd6 {[%clk 0:00:06.6]} 40.
f5 {[%clk 0:00:11.8]} 40... Bd5 {[%clk 0:00:05.6]} 41. Kg7 {[%clk 0:00:02.6]}
41... Bxe6 {[%clk 0:00:05.1]} 42. Rc6+ {[%clk 0:00:02.2]} 42... Kd5 {[%clk
0:00:02.8]} 43. fxe6 {[%clk 0:00:02.6]} 43... Rxh2 {[%clk 0:00:03.1]} 44. e7
{[%clk 0:00:02.6]} 44... Re2 {[%clk 0:00:03.2]} 45. Kf7 {[%clk 0:00:03.1]} 45...
g3 {[%clk 0:00:03.6]} 46. Rg6 {[%clk 0:00:02.9]} 46... g2 {[%clk 0:00:02.6]} 47.
Rxg2 {[%clk 0:00:02.9]} 47... Rxg2 {[%clk 0:00:02.3]} 48. e8=Q {[%clk
0:00:02.9]} 48... Rf2+ {[%clk 0:00:02.8]} 49. Kg7 {[%clk 0:00:03.5]} 49... Rf5
{[%clk 0:00:02.9]} 50. Qd8+ {[%clk 0:00:04.1]} 50... Ke5 {[%clk 0:00:03.1]} 51.
Qc7+ {[%clk 0:00:03.9]} 51... Ke4 {[%clk 0:00:03.5]} 52. Qxb6 {[%clk 0:00:04.8]}
52... h5 {[%clk 0:00:02.6]} 53. Qc6+ {[%clk 0:00:05.7]} 53... Kf4 {[%clk
0:00:02.8]} 54. b6 {[%clk 0:00:06.3]} 1-0

[Event "*** Titled Tuesday Blitz"]
[Site "Chess.com"]
[Date "2020.05.19"]
[Round "10"]
[White "GMJustin"]
[Black "Shushik"]
[Result "0-1"]
[WhiteElo "2308"]
[BlackElo "2119"]
[TimeControl "180+1"]
[EndTime "13:57:39 PDT"]
[Termination "Shushik won on time"]

1. e4 {[%clk 0:02:58.1]} 1... e5 {[%clk 0:03:00.2]} 2. Bc4 {[%clk 0:02:54.3]}
2... Nf6 {[%clk 0:02:59.8]} 3. d3 {[%clk 0:02:52.6]} 3... Nc6 {[%clk 0:02:57]}
4. Nc3 {[%clk 0:02:51.7]} 4... Bb4 {[%clk 0:02:54.6]} 5. Ne2 {[%clk 0:02:50.6]}
5... d5 {[%clk 0:02:51.4]} 6. exd5 {[%clk 0:02:49.6]} 6... Nxd5 {[%clk
0:02:50.7]} 7. O-O {[%clk 0:02:49.3]} 7... Bxc3 {[%clk 0:02:47.2]} 8. bxc3
{[%clk 0:02:44.9]} 8... O-O {[%clk 0:02:45.9]} 9. Bb3 {[%clk 0:02:06]} 9... Bg4
{[%clk 0:02:39.8]} 10. f3 {[%clk 0:02:02.3]} 10... Be6 {[%clk 0:02:38.5]} 11. c4
{[%clk 0:01:56.2]} 11... Nf6 {[%clk 0:02:32.9]} 12. c3 {[%clk 0:01:41.4]} 12...
Qd7 {[%clk 0:02:26.6]} 13. d4 {[%clk 0:01:29.2]} 13... Na5 {[%clk 0:02:08]} 14.
dxe5 {[%clk 0:01:14.4]} 14... Nxb3 {[%clk 0:01:59.7]} 15. axb3 {[%clk
0:01:05.9]} 15... Qxd1 {[%clk 0:01:58.4]} 16. Rxd1 {[%clk 0:01:05.7]} 16... Nd7
{[%clk 0:01:59.3]} 17. Bf4 {[%clk 0:01:01.8]} 17... c5 {[%clk 0:01:44.4]} 18.
Rd6 {[%clk 0:00:54.2]} 18... Nb8 {[%clk 0:01:38]} 19. Be3 {[%clk 0:00:49.2]}
19... Nd7 {[%clk 0:01:31.5]} 20. f4 {[%clk 0:00:44.9]} 20... b6 {[%clk 0:01:25]}
21. Ng3 {[%clk 0:00:42.6]} 21... g6 {[%clk 0:01:19.5]} 22. Ne4 {[%clk
0:00:40.9]} 22... Rfd8 {[%clk 0:01:17.8]} 23. Rad1 {[%clk 0:00:35.5]} 23... Kf8
{[%clk 0:01:08.8]} 24. Ng5 {[%clk 0:00:20]} 24... Bg4 {[%clk 0:01:04.5]} 25.
R1d2 {[%clk 0:00:18.4]} 25... h6 {[%clk 0:01:03.7]} 26. Ne4 {[%clk 0:00:15.3]}
26... Be6 {[%clk 0:01:01.5]} 27. h3 {[%clk 0:00:13.1]} 27... Ke7 {[%clk
0:00:53.3]} 28. g4 {[%clk 0:00:12.8]} 28... Nf8 {[%clk 0:00:49.7]} 29. Kf2
{[%clk 0:00:12]} 29... Rxd6 {[%clk 0:00:40.2]} 30. exd6+ {[%clk 0:00:11.1]}
30... Kd8 {[%clk 0:00:38.6]} 31. Ng3 {[%clk 0:00:10.1]} 31... Bd7 {[%clk
0:00:36.9]} 32. f5 {[%clk 0:00:10]} 32... g5 {[%clk 0:00:29.9]} 33. Ne4 {[%clk
0:00:09.5]} 33... Nh7 {[%clk 0:00:28.2]} 34. h4 {[%clk 0:00:09]} 34... f6 {[%clk
0:00:27.7]} 35. hxg5 {[%clk 0:00:08.2]} 35... hxg5 {[%clk 0:00:27.5]} 36. Kg3
{[%clk 0:00:07.1]} 36... Bc6 {[%clk 0:00:24.4]} 37. Rh2 {[%clk 0:00:06.7]} 37...
Bxe4 {[%clk 0:00:19.9]} 38. Rxh7 {[%clk 0:00:06.7]} 38... a5 {[%clk 0:00:16.7]}
39. Rf7 {[%clk 0:00:05.1]} 39... Bc2 {[%clk 0:00:15.8]} 40. Rxf6 {[%clk
0:00:04.6]} 40... Kd7 {[%clk 0:00:15]} 41. Bxg5 {[%clk 0:00:04.2]} 41... Bxb3
{[%clk 0:00:14.9]} 42. Bf4 {[%clk 0:00:04.1]} 42... Bxc4 {[%clk 0:00:13.6]} 43.
Rf7+ {[%clk 0:00:04.2]} 43... Bxf7 {[%clk 0:00:13.3]} 44. g5 {[%clk 0:00:03.5]}
44... a4 {[%clk 0:00:12.9]} 45. g6 {[%clk 0:00:03.7]} 45... Bg8 {[%clk
0:00:13.2]} 46. f6 {[%clk 0:00:03.7]} 46... a3 {[%clk 0:00:13]} 47. f7 {[%clk
0:00:03.6]} 47... a2 {[%clk 0:00:13.1]} 48. fxg8=Q {[%clk 0:00:01.2]} 48... Rxg8
{[%clk 0:00:12.9]} 0-1

[Event "*** Titled Tuesday Blitz"]
[Site "Chess.com"]
[Date "2020.05.19"]
[Round "10"]
[White "TregubovP"]
[Black "okriak"]
[Result "1-0"]
[WhiteElo "2579"]
[BlackElo "2732"]
[TimeControl "180+1"]
[EndTime "13:57:40 PDT"]
[Termination "TregubovP won by checkmate"]

1. e4 {[%clk 0:03:00.9]} 1... e5 {[%clk 0:02:58.5]} 2. Nf3 {[%clk 0:03:00.8]}
2... Nc6 {[%clk 0:02:56.5]} 3. Bb5 {[%clk 0:03:01.3]} 3... a6 {[%clk 0:02:56.4]}
4. Ba4 {[%clk 0:03:01.4]} 4... Nf6 {[%clk 0:02:56.1]} 5. d4 {[%clk 0:03:00.9]}
5... exd4 {[%clk 0:02:54.9]} 6. O-O {[%clk 0:02:59.4]} 6... Be7 {[%clk
0:02:53.7]} 7. e5 {[%clk 0:02:57.8]} 7... Ne4 {[%clk 0:02:53.1]} 8. Nxd4 {[%clk
0:02:58]} 8... Nc5 {[%clk 0:02:52.4]} 9. Nf5 {[%clk 0:02:53.7]} 9... g6 {[%clk
0:02:38.9]} 10. Nxe7 {[%clk 0:02:44.6]} 10... Qxe7 {[%clk 0:02:38.2]} 11. Bxc6
{[%clk 0:02:40.5]} 11... dxc6 {[%clk 0:02:37.2]} 12. Bh6 {[%clk 0:02:37.1]}
12... Ne6 {[%clk 0:02:25.6]} 13. Nc3 {[%clk 0:02:29.9]} 13... Bd7 {[%clk
0:02:20.9]} 14. Ne4 {[%clk 0:02:22.2]} 14... O-O-O {[%clk 0:02:19.4]} 15. Nf6
{[%clk 0:02:20.7]} 15... c5 {[%clk 0:02:14.3]} 16. Re1 {[%clk 0:01:55.1]} 16...
Bc6 {[%clk 0:02:10.7]} 17. Qg4 {[%clk 0:01:54.2]} 17... Kb8 {[%clk 0:02:10.4]}
18. c3 {[%clk 0:01:53.5]} 18... Rd3 {[%clk 0:02:05]} 19. Rad1 {[%clk 0:01:45.2]}
19... Rhd8 {[%clk 0:02:04.4]} 20. Rxd3 {[%clk 0:01:44.9]} 20... Rxd3 {[%clk
0:02:04.1]} 21. Nxh7 {[%clk 0:01:42.4]} 21... Qd8 {[%clk 0:01:58.1]} 22. Nf6
{[%clk 0:01:39.8]} 22... b6 {[%clk 0:01:49.4]} 23. h4 {[%clk 0:01:39.7]} 23...
a5 {[%clk 0:01:47.8]} 24. h5 {[%clk 0:01:35.6]} 24... gxh5 {[%clk 0:01:46.5]}
25. Qxh5 {[%clk 0:01:35.8]} 25... Qe7 {[%clk 0:01:35]} 26. Be3 {[%clk
0:01:35.2]} 26... Kb7 {[%clk 0:01:29.2]} 27. Rd1 {[%clk 0:01:32.7]} 27... Ng7
{[%clk 0:01:19.2]} 28. Qg4 {[%clk 0:01:31]} 28... Rxd1+ {[%clk 0:01:18.8]} 29.
Qxd1 {[%clk 0:01:30.9]} 29... Qxe5 {[%clk 0:01:19.3]} 30. Ng4 {[%clk 0:01:27.3]}
30... Qe6 {[%clk 0:01:14]} 31. f3 {[%clk 0:01:25.3]} 31... Nf5 {[%clk
0:01:13.5]} 32. Bf2 {[%clk 0:01:25.2]} 32... Qxa2 {[%clk 0:01:12.1]} 33. Ne5
{[%clk 0:01:19.5]} 33... Qd5 {[%clk 0:01:07.4]} 34. Qe1 {[%clk 0:01:14.3]} 34...
Ba4 {[%clk 0:00:59.2]} 35. c4 {[%clk 0:01:11.2]} 35... Qe6 {[%clk 0:00:58.6]}
36. Qe4+ {[%clk 0:01:10.5]} 36... Kb8 {[%clk 0:00:50.4]} 37. g4 {[%clk
0:01:09.2]} 37... Nd6 {[%clk 0:00:47.3]} 38. Qf4 {[%clk 0:01:09.4]} 38... Kb7
{[%clk 0:00:42.7]} 39. Bh4 {[%clk 0:01:04]} 39... Be8 {[%clk 0:00:41.7]} 40. Kg2
{[%clk 0:00:57.3]} 40... Ba4 {[%clk 0:00:41.1]} 41. Bf6 {[%clk 0:00:55.6]} 41...
Bb3 {[%clk 0:00:40.9]} 42. Qe3 {[%clk 0:00:45.1]} 42... Bxc4 {[%clk 0:00:35.5]}
43. Bg7 {[%clk 0:00:43.7]} 43... Bd5 {[%clk 0:00:33.7]} 44. Qf4 {[%clk
0:00:40.7]} 44... Nc4 {[%clk 0:00:25.8]} 45. Kg3 {[%clk 0:00:40.4]} 45... Nxe5
{[%clk 0:00:25.5]} 46. Bxe5 {[%clk 0:00:40.3]} 46... Qc6 {[%clk 0:00:24.8]} 47.
g5 {[%clk 0:00:39.5]} 47... a4 {[%clk 0:00:24.5]} 48. Qe3 {[%clk 0:00:36.1]}
48... b5 {[%clk 0:00:24.5]} 49. Bf6 {[%clk 0:00:32.7]} 49... b4 {[%clk 0:00:24]}
50. Be5 {[%clk 0:00:31.9]} 50... Kb6 {[%clk 0:00:24.2]} 51. Bf6 {[%clk 0:00:29]}
51... Qe6 {[%clk 0:00:23.6]} 52. Be5 {[%clk 0:00:28]} 52... Qf5 {[%clk
0:00:23.1]} 53. Bf4 {[%clk 0:00:27]} 53... Qe6 {[%clk 0:00:19.6]} 54. Be5 {[%clk
0:00:24.5]} 54... Kb5 {[%clk 0:00:19.5]} 55. Qe2+ {[%clk 0:00:23.3]} 55... Bc4
{[%clk 0:00:19.5]} 56. Qe3 {[%clk 0:00:23.5]} 56... Qd5 {[%clk 0:00:19.5]} 57.
Bxc7 {[%clk 0:00:22.9]} 57... Qd4 {[%clk 0:00:18.3]} 58. Qe8+ {[%clk 0:00:20.5]}
58... Ka6 {[%clk 0:00:18.6]} 59. Qa8+ {[%clk 0:00:20]} 59... Kb5 {[%clk
0:00:18.8]} 60. Qb7# {[%clk 0:00:19.8]} 1-0

[Event "*** Titled Tuesday Blitz"]
[Site "Chess.com"]
[Date "2020.05.19"]
[Round "10"]
[White "bazar-wokzal"]
[Black "quesfr"]
[Result "1-0"]
[WhiteElo "2509"]
[BlackElo "2302"]
[TimeControl "180+1"]
[EndTime "13:57:42 PDT"]
[Termination "bazar-wokzal won on time"]

1. e4 {[%clk 0:03:00.9]} 1... e6 {[%clk 0:02:59.2]} 2. d4 {[%clk 0:03:00.3]}
2... d5 {[%clk 0:02:59]} 3. exd5 {[%clk 0:03:00.4]} 3... exd5 {[%clk 0:02:59.9]}
4. Nf3 {[%clk 0:03:00.6]} 4... Bd6 {[%clk 0:02:55.6]} 5. c4 {[%clk 0:03:00.1]}
5... c6 {[%clk 0:02:54.5]} 6. Bd3 {[%clk 0:02:59.1]} 6... Ne7 {[%clk 0:02:49.1]}
7. O-O {[%clk 0:02:56.8]} 7... O-O {[%clk 0:02:48.4]} 8. Nc3 {[%clk 0:02:55.9]}
8... Bf5 {[%clk 0:02:41.4]} 9. Be2 {[%clk 0:02:55.5]} 9... Nd7 {[%clk
0:02:34.3]} 10. Bg5 {[%clk 0:02:47.3]} 10... f6 {[%clk 0:02:28.9]} 11. Bh4
{[%clk 0:02:47]} 11... Be6 {[%clk 0:02:12.9]} 12. Qb3 {[%clk 0:02:32.5]} 12...
Qb6 {[%clk 0:01:52.3]} 13. c5 {[%clk 0:02:29.4]} 13... Qxb3 {[%clk 0:01:51.8]}
14. axb3 {[%clk 0:02:29.4]} 14... Bf4 {[%clk 0:01:42.1]} 15. b4 {[%clk
0:02:27.3]} 15... a6 {[%clk 0:01:38.6]} 16. Rfe1 {[%clk 0:02:19.2]} 16... Kf7
{[%clk 0:01:36.4]} 17. Bd3 {[%clk 0:02:12.6]} 17... g6 {[%clk 0:01:32]} 18. Bg3
{[%clk 0:02:03.2]} 18... Bxg3 {[%clk 0:01:26.6]} 19. hxg3 {[%clk 0:02:03.3]}
19... Bg4 {[%clk 0:01:20.6]} 20. Nd2 {[%clk 0:02:01.8]} 20... Bf5 {[%clk
0:00:36.3]} 21. Bf1 {[%clk 0:02:00.7]} 21... Rfe8 {[%clk 0:00:35.4]} 22. Nb3
{[%clk 0:02:00]} 22... Ng8 {[%clk 0:00:34.9]} 23. Na5 {[%clk 0:01:58.8]} 23...
Rab8 {[%clk 0:00:31.3]} 24. Rxe8 {[%clk 0:01:55.6]} 24... Kxe8 {[%clk
0:00:31.1]} 25. f3 {[%clk 0:01:54.7]} 25... Nf8 {[%clk 0:00:30]} 26. g4 {[%clk
0:01:53]} 26... Bd7 {[%clk 0:00:28]} 27. Kf2 {[%clk 0:01:50.4]} 27... Kd8 {[%clk
0:00:28.2]} 28. Bd3 {[%clk 0:01:42.6]} 28... Kc7 {[%clk 0:00:27.3]} 29. Na4
{[%clk 0:01:38.7]} 29... Re8 {[%clk 0:00:26.1]} 30. Nb6 {[%clk 0:01:37.3]} 30...
Bc8 {[%clk 0:00:24.1]} 31. Nb3 {[%clk 0:01:28]} 31... Nd7 {[%clk 0:00:22]} 32.
Nxc8 {[%clk 0:01:21.2]} 32... Kxc8 {[%clk 0:00:21.6]} 33. b5 {[%clk 0:01:10.9]}
33... axb5 {[%clk 0:00:18.2]} 34. Ra8+ {[%clk 0:01:08.4]} 34... Nb8 {[%clk
0:00:18.2]} 35. Ra1 {[%clk 0:01:06.7]} 35... Kc7 {[%clk 0:00:17.9]} 36. Rh1
{[%clk 0:01:04.9]} 36... Re7 {[%clk 0:00:17.2]} 37. Ra1 {[%clk 0:00:57.2]} 37...
Na6 {[%clk 0:00:16.6]} 38. f4 {[%clk 0:00:53.9]} 38... Re8 {[%clk 0:00:15.2]}
39. g5 {[%clk 0:00:51.9]} 39... Rf8 {[%clk 0:00:13.5]} 40. Ke3 {[%clk 0:00:50]}
40... Nb4 {[%clk 0:00:12.6]} 41. Nd2 {[%clk 0:00:35.9]} 41... fxg5 {[%clk
0:00:11.3]} 42. fxg5 {[%clk 0:00:35.5]} 42... Ne7 {[%clk 0:00:11.2]} 43. Nf3
{[%clk 0:00:34.1]} 43... Nf5+ {[%clk 0:00:11.1]} 44. Bxf5 {[%clk 0:00:33.5]}
44... Rxf5 {[%clk 0:00:11.6]} 45. Rh1 {[%clk 0:00:32.9]} 45... Rf7 {[%clk
0:00:08.1]} 46. Ne5 {[%clk 0:00:32.8]} 46... Re7 {[%clk 0:00:07.6]} 47. Kd2
{[%clk 0:00:32.4]} 47... Na6 {[%clk 0:00:04.8]} 48. Ng4 {[%clk 0:00:31.8]} 48...
Nb8 {[%clk 0:00:04.4]} 49. Nf6 {[%clk 0:00:31.6]} 49... Nd7 {[%clk 0:00:04]} 50.
Rxh7 {[%clk 0:00:30.9]} 50... Rxh7 {[%clk 0:00:03.8]} 51. Nxh7 {[%clk
0:00:30.9]} 51... Kd8 {[%clk 0:00:03.3]} 52. Nf6 {[%clk 0:00:27.9]} 52... Ke7
{[%clk 0:00:02.8]} 53. Ng4 {[%clk 0:00:25.2]} 53... Nf8 {[%clk 0:00:02.5]} 54.
Ke3 {[%clk 0:00:21.9]} 54... Ke6 {[%clk 0:00:02.8]} 55. Ne5 {[%clk 0:00:21.1]}
55... Kf5 {[%clk 0:00:02.3]} 56. Nf7 {[%clk 0:00:21]} 1-0

[Event "*** Titled Tuesday Blitz"]
[Site "Chess.com"]
[Date "2020.05.19"]
[Round "10"]
[White "Corpescador"]
[Black "Karina_Ivanova"]
[Result "0-1"]
[WhiteElo "2332"]
[BlackElo "2208"]
[TimeControl "180+1"]
[EndTime "13:57:42 PDT"]
[Termination "Karina_Ivanova won on time"]

1. e4 {[%clk 0:03:00.9]} 1... c6 {[%clk 0:02:59.1]} 2. Nc3 {[%clk 0:03:00.6]}
2... d5 {[%clk 0:03:00]} 3. Nf3 {[%clk 0:03:00.6]} 3... Bg4 {[%clk 0:02:57.4]}
4. h3 {[%clk 0:03:00.5]} 4... Bxf3 {[%clk 0:02:56]} 5. Qxf3 {[%clk 0:03:01.4]}
5... e6 {[%clk 0:02:56.7]} 6. d4 {[%clk 0:03:01.1]} 6... dxe4 {[%clk 0:02:55.4]}
7. Qxe4 {[%clk 0:03:00.7]} 7... Nf6 {[%clk 0:02:54.4]} 8. Qd3 {[%clk 0:03:00.9]}
8... Bd6 {[%clk 0:02:51.8]} 9. g3 {[%clk 0:03:01.1]} 9... Nbd7 {[%clk
0:02:50.9]} 10. Bg2 {[%clk 0:03:01.2]} 10... O-O {[%clk 0:02:50.4]} 11. O-O
{[%clk 0:03:01.2]} 11... e5 {[%clk 0:02:47.4]} 12. d5 {[%clk 0:02:46.3]} 12...
cxd5 {[%clk 0:02:46.8]} 13. Nxd5 {[%clk 0:02:45.1]} 13... Rb8 {[%clk 0:02:34.9]}
14. Rd1 {[%clk 0:02:33.6]} 14... Bc5 {[%clk 0:02:26]} 15. Be3 {[%clk 0:02:04.7]}
15... Nxd5 {[%clk 0:02:13.1]} 16. Qxd5 {[%clk 0:01:42.2]} 16... Bxe3 {[%clk
0:02:11.4]} 17. Qxd7 {[%clk 0:01:41.8]} 17... Bd4 {[%clk 0:02:01.9]} 18. Qxd8
{[%clk 0:01:34]} 18... Rfxd8 {[%clk 0:02:00.5]} 19. c3 {[%clk 0:01:25.9]} 19...
Bb6 {[%clk 0:01:59.3]} 20. Bd5 {[%clk 0:01:11.1]} 20... Kf8 {[%clk 0:01:55.5]}
21. Kg2 {[%clk 0:01:09.7]} 21... Rd7 {[%clk 0:01:52]} 22. Rd3 {[%clk 0:00:51.6]}
22... Rbd8 {[%clk 0:01:49.2]} 23. Rad1 {[%clk 0:00:51.6]} 23... Ke7 {[%clk
0:01:33.9]} 24. g4 {[%clk 0:00:45.2]} 24... f6 {[%clk 0:01:32.5]} 25. Kf3 {[%clk
0:00:39.9]} 25... Bc5 {[%clk 0:01:20.3]} 26. b4 {[%clk 0:00:38.5]} 26... Bb6
{[%clk 0:01:18.2]} 27. Ke2 {[%clk 0:00:33.8]} 27... a5 {[%clk 0:01:13]} 28. a3
{[%clk 0:00:32]} 28... axb4 {[%clk 0:01:12.6]} 29. axb4 {[%clk 0:00:30.5]} 29...
Ba7 {[%clk 0:01:07.1]} 30. h4 {[%clk 0:00:18.3]} 30... b6 {[%clk 0:00:58.6]} 31.
h5 {[%clk 0:00:17.7]} 31... h6 {[%clk 0:00:56.9]} 32. Be4 {[%clk 0:00:14.2]}
32... Rxd3 {[%clk 0:00:55.8]} 33. Bxd3 {[%clk 0:00:15.1]} 33... Rd7 {[%clk
0:00:44.8]} 34. Kf3 {[%clk 0:00:13.4]} 34... Bb8 {[%clk 0:00:26.9]} 35. Ke4
{[%clk 0:00:12.7]} 35... Rc7 {[%clk 0:00:25.7]} 36. Rc1 {[%clk 0:00:12]} 36...
Rd7 {[%clk 0:00:22.1]} 37. f3 {[%clk 0:00:11.1]} 37... Ba7 {[%clk 0:00:19.9]}
38. Ra1 {[%clk 0:00:09.7]} 38... Bb8 {[%clk 0:00:19.5]} 39. Bb5 {[%clk
0:00:08.6]} 39... Rc7 {[%clk 0:00:18.2]} 40. Ra8 {[%clk 0:00:07.9]} 40... Rc8
{[%clk 0:00:18.3]} 41. Kf5 {[%clk 0:00:07.2]} 41... Rd8 {[%clk 0:00:17.1]} 42.
Kg6 {[%clk 0:00:07.3]} 42... Kf8 {[%clk 0:00:16.6]} 43. Bc4 {[%clk 0:00:07.2]}
43... Bc7 {[%clk 0:00:16]} 44. Ra7 {[%clk 0:00:06.8]} 44... Rd7 {[%clk
0:00:15.9]} 45. Be6 {[%clk 0:00:06.3]} 45... Re7 {[%clk 0:00:15.6]} 46. Kf5
{[%clk 0:00:05.3]} 46... Bd6 {[%clk 0:00:13.7]} 47. Ra8+ {[%clk 0:00:04]} 47...
Re8 {[%clk 0:00:13.7]} 48. Ra6 {[%clk 0:00:04.1]} 48... Rb8 {[%clk 0:00:13.6]}
49. Bd5 {[%clk 0:00:04.1]} 49... Be7 {[%clk 0:00:13.3]} 50. Kg6 {[%clk
0:00:04.3]} 50... Bd6 {[%clk 0:00:13.4]} 51. Ra7 {[%clk 0:00:04.2]} 51... Be7
{[%clk 0:00:13.7]} 52. Rd7 {[%clk 0:00:03.6]} 52... b5 {[%clk 0:00:11]} 53. Bc6
{[%clk 0:00:02.7]} 53... Rb6 {[%clk 0:00:10]} 0-1